fUSD/lending_fUSD_20240129
["ID","MTS","AMOUNT","RATE_DAILY","PERIOD"]
[312983678,1706562667753,-594.66573166,0.0005315,31]
[312983679,1706562667763,-1188.3,0.0005315,31]
[312983680,1706562667773,-500.0,0.0005315,31]
[312983681,1706562667945,-326.65034936,0.0005315,31]
[312983682,1706562667954,-500.0,0.0005315,31]
[312983683,1706562667963,-500.0,0.0005315,31]
[312983684,1706562667974,-500.0,0.0005315,31]
[312983685,1706562667983,-500.0,0.0005315,31]
[312983686,1706562667992,-500.0,0.0005315,31]
[312983687,1706562668001,-753.23,0.0005315,7]
[312983688,1706562668010,-500.0,0.0005315,31]
[312983689,1706562668019,-500.0,0.0005315,2]
[312983690,1706562668029,-500.0,0.0005315,31]
[312983691,1706562668038,-500.0,0.0005315,31]
[312983692,1706562668047,-500.0,0.0005315,31]
[312983693,1706562668056,-500.0,0.0005315,31]
[312983694,1706562668066,-500.0,0.0005315,31]
[312983695,1706562668075,-1008.73,0.0005315,31]
[312983696,1706562668085,-500.0,0.0005315,31]
[312983697,1706562668094,-500.0,0.0005315,31]
[312983698,1706562668104,-500.0,0.0005315,31]
[312983699,1706562668113,-565.23,0.0005315,2]
[312983700,1706562668122,-500.0,0.0005315,31]
[312983701,1706562668132,-500.0,0.0005315,2]
[312983702,1706562668141,-500.0,0.0005315,31]
[312983703,1706562668150,-500.0,0.0005315,31]
[312983704,1706562668160,-500.0,0.0005315,31]
[312983705,1706562668169,-307.76,0.0005315,31]
[312983706,1706562668179,-1395.99,0.0005315,2]
[312983707,1706562668191,-500.0,0.0005315,31]
[312983708,1706562668202,-500.0,0.0005315,31]
[312983709,1706562668211,-500.0,0.0005315,2]
[312983710,1706562668220,-653.75,0.0005315,31]
[312983711,1706562668230,-500.0,0.0005315,31]
[312983712,1706562668239,-500.0,0.0005315,31]
[312983713,1706562668248,-500.0,0.0005315,31]
[312983714,1706562668257,-500.0,0.0005315,31]
[312983715,1706562668266,-500.0,0.0005315,31]
[312983716,1706562668276,-500.0,0.0005315,31]
[312983717,1706562668285,-500.0,0.0005315,31]
[312983718,1706562668294,-500.0,0.0005315,31]
[312983719,1706562668304,-1000.0,0.0005315,31]
[312983720,1706562668313,-500.0,0.0005315,31]
[312983721,1706562668322,-500.0,0.0005315,31]
[312983722,1706562668331,-508.14,0.0005315,31]
[312983723,1706562668341,-500.0,0.0005315,31]
[312983724,1706562668350,-500.0,0.0005315,31]
[312983725,1706562668360,-516.0,0.0005315,31]
[312983726,1706562668369,-500.0,0.0005315,15]
[312983727,1706562668378,-500.0,0.0005315,31]
[312983728,1706562668388,-584.65,0.0005315,2]
[312983729,1706562668397,-3813.28,0.0005315,31]
[312983730,1706562668406,-500.0,0.0005315,31]
[312983731,1706562668416,-500.0,0.0005315,31]
[312983732,1706562668425,-500.0,0.0005315,31]
[312983733,1706562668435,-500.0,0.0005315,31]
[312983734,1706562668446,-500.0,0.0005315,31]
[312983735,1706562668455,-500.0,0.0005315,31]
[312983736,1706562668465,-678.76,0.0005315,31]
[312983737,1706562668474,-810.75,0.0005315,31]
[312983738,1706562668484,-500.0,0.0005315,31]
[312983739,1706562668494,-550.01128495,0.0005315,31]
[312983740,1706562668503,-1315.92,0.0005315,31]
[312983741,1706562668512,-500.0,0.0005315,2]
[312983742,1706562668521,-500.0,0.0005315,31]
[312983743,1706562668530,-443.24592163,0.0005315,31]
[312983744,1706562668539,-500.0,0.0005315,31]
[312983745,1706562668548,-500.0,0.0005315,31]
[312983746,1706562668562,-448.64553271,0.0005315,31]
[312983747,1706562668571,-500.0,0.0005315,31]
[312983748,1706562668581,-500.0,0.0005315,31]
[312983749,1706562668590,-508.85415427,0.0005315,31]
[312983750,1706562668600,-500.0,0.0005315,31]
[312983751,1706562668609,-1137.15,0.0005315,31]
[312983752,1706562668619,-500.0,0.0005315,31]
[312983753,1706562668629,-500.0,0.0005315,31]
[312983754,1706562668638,-729.95,0.0005315,31]
[312983755,1706562668648,-842.32,0.0005315,31]
[312983756,1706562668657,-500.0,0.0005315,31]
[312983757,1706562668666,-3314.2,0.0005315,31]
[312983758,1706562668676,-1404.56,0.0005315,31]
[312983759,1706562668685,-500.0,0.0005315,31]
[312983760,1706562668694,-1228.34,0.0005315,31]
[312983761,1706562668704,-500.0,0.0005315,31]
[312983762,1706562668713,-2951.99,0.0005315,31]
[312983763,1706562668722,-500.0,0.0005315,31]
[312983764,1706562668731,-2217.15,0.0005315,31]
[312983765,1706562668741,-5861.0,0.0005315,31]
[312983766,1706562668751,-500.0,0.0005315,31]
[312983767,1706562668760,-904.42,0.0005315,31]
[312983768,1706562668769,-514.92,0.0005315,31]
[312983769,1706562668779,-500.0,0.0005315,31]
[312983770,1706562668788,-4123.05,0.0005315,31]
[312983771,1706562668797,-834.68,0.0005315,31]
[312983772,1706562668807,-500.0,0.0005315,31]
[312983773,1706562668816,-500.0,0.0005315,31]
[312983774,1706562668826,-500.0,0.0005315,31]
[312983775,1706562668836,-500.0,0.0005315,31]
[312983776,1706562668846,-500.0,0.0005315,31]
[312983777,1706562668856,-574.8912571,0.0005315,31]
[312983778,1706562668865,-2352.21,0.0005315,5]
[312983779,1706562668874,-872.42,0.0005315,31]
[312983780,1706562668883,-808.55,0.0005315,31]
[312983781,1706562668893,-500.0,0.0005315,31]
[312983782,1706562668902,-1072.78,0.0005315,31]
[312983783,1706562668911,-768.15,0.0005315,31]
[312983784,1706562668920,-848.92,0.0005315,31]
[312983785,1706562668929,-500.0,0.0005315,31]
[312983786,1706562668940,-1057.66,0.0005315,31]
[312983787,1706562668950,-1366.69,0.0005315,31]
[312983788,1706562668959,-500.0,0.0005315,31]
[312983789,1706562668968,-500.0,0.0005315,31]
[312983790,1706562668977,-664.14,0.0005315,31]
[312983791,1706562668986,-500.0,0.0005315,31]
[312983792,1706562668996,-500.0,0.0005315,31]
[312983793,1706562669006,-1682.7,0.0005315,7]
[312983794,1706562669016,-777.18,0.0005315,31]
[312983795,1706562669025,-500.0,0.0005315,31]
[312983796,1706562669035,-467.7000224,0.0005315,31]
[312983797,1706562669046,-856.53,0.0005315,31]
[312983798,1706562669056,-1646.94,0.0005315,31]
[312983799,1706562669065,-988.88,0.0005315,31]
[312983800,1706562669074,-500.0,0.0005315,31]
[312983801,1706562669083,-1527.83,0.0005315,31]
[312983802,1706562669093,-500.0,0.0005315,31]
[312983803,1706562669103,-790.42,0.0005315,31]
[312983804,1706562669112,-1019.27,0.0005315,31]
[312983805,1706562669122,-1734.17,0.0005315,31]
[312983806,1706562669132,-548.48,0.0005315,31]
[312983807,1706562669142,-500.0,0.0005315,31]
[312983808,1706562669151,-531.18,0.0005315,31]
[312983809,1706562669160,-1982.35,0.0005315,31]
[312983810,1706562669169,-837.06,0.0005315,31]
[312983811,1706562669178,-900.36,0.0005315,31]
[312983812,1706562669188,-500.0,0.0005315,31]
[312983813,1706562669197,-861.81,0.0005315,31]
[312983814,1706562669206,-1065.22,0.0005315,31]
[312983815,1706562669215,-526.99,0.0005315,31]
[312983816,1706562669224,-3233.79,0.0005315,31]
[312983817,1706562669233,-500.0,0.0005315,31]
[312983818,1706562669243,-500.0,0.0005315,31]
[312983819,1706562669252,-500.0,0.0005315,31]
[312983820,1706562669261,-500.0,0.0005315,31]
[312983821,1706562669270,-770.21,0.0005315,31]
[312983822,1706562669278,-500.0,0.0005315,31]
[312983823,1706562669287,-1898.91,0.0005315,31]
[312983824,1706562669297,-500.0,0.0005315,31]
[312983825,1706562669306,-500.0,0.0005315,31]
[312983826,1706562669316,-500.0,0.0005315,31]
[312983827,1706562669326,-500.0,0.0005315,31]
[312983828,1706562669335,-1120.72,0.0005315,31]
[312983829,1706562669345,-500.0,0.0005315,31]
[312983830,1706562669355,-1947.76,0.0005315,31]
[312983831,1706562669366,-3565.46,0.0005315,31]
[312983832,1706562669375,-3131.4,0.0005315,31]
[312983833,1706562669384,-500.0,0.0005315,31]
[312983834,1706562669394,-760.81,0.0005315,31]
[312983835,1706562669403,-591.24,0.0005315,31]
[312983836,1706562669414,-662.72,0.0005315,31]
[312983837,1706562669425,-500.0,0.0005315,31]
[312983838,1706562669434,-806.17,0.0005315,31]
[312983839,1706562669446,-500.0,0.0005315,31]
[312983840,1706562669457,-500.0,0.0005315,14]
[312983841,1706562669467,-500.0,0.0005315,31]
[312983842,1706562669476,-500.0,0.0005315,31]
[312983843,1706562669485,-500.0,0.0005315,31]
[312983844,1706562669494,-751.56,0.0005315,31]
[312983845,1706562669503,-192.29640736,0.0005315,31]
[312983846,1706562669513,-500.0,0.0005315,31]
[312983847,1706562669522,-500.0,0.0005315,31]
[312983848,1706562669531,-533.14,0.0005315,31]
[312983849,1706562669541,-500.0,0.0005315,31]
[312983850,1706562669552,-500.0,0.0005315,31]
[312983851,1706562669566,-500.0,0.0005315,31]
[312983852,1706562669576,-1270.54,0.0005315,31]
[312983853,1706562669585,-1323.4,0.0005315,31]
[312983854,1706562669596,-1029.27,0.0005315,31]
[312983855,1706562669605,-991.32,0.0005315,31]
[312983856,1706562669615,-500.0,0.0005315,31]
[312983857,1706562669624,-500.0,0.0005315,31]
[312983858,1706562669635,-1953.23,0.0005315,31]
[312983859,1706562669645,-500.0,0.0005315,31]
[312983860,1706562669654,-500.0,0.0005315,31]
[312983861,1706562669664,-592.93,0.0005315,31]
[312983862,1706562669673,-5461.09,0.0005315,31]
[312983863,1706562669682,-500.0,0.0005315,31]
[312983864,1706562669692,-500.0,0.0005315,31]
[312983865,1706562669702,-1516.26,0.0005315,31]
[312983866,1706562669712,-500.0,0.0005315,31]
[312983867,1706562669721,-1450.85,0.0005315,31]
[312983868,1706562669731,-500.0,0.0005315,31]
[312983869,1706562669741,-7439.22,0.0005315,31]
[312983870,1706562669751,-896.98,0.0005315,31]
[312983871,1706562669762,-1073.32,0.0005315,31]
[312983872,1706562669771,-500.0,0.0005315,31]
[312983873,1706562669781,-1105.84,0.0005315,31]
[312983874,1706562669790,-500.0,0.0005315,31]
[312983875,1706562669800,-838.35,0.0005315,31]
[312983876,1706562669809,-500.0,0.0005315,31]
[312983877,1706562669818,-1207.63,0.0005315,31]
[312983878,1706562669827,-500.0,0.0005315,31]
[312983879,1706562669836,-2788.39,0.0005315,31]
[312983880,1706562669846,-500.0,0.0005315,31]
[312983881,1706562669855,-500.0,0.0005315,31]
[312983882,1706562669865,-500.0,0.0005315,31]
[312983883,1706562669874,-500.0,0.0005315,31]
[312983884,1706562669884,-500.0,0.0005315,31]
[312983885,1706562669894,-750.58,0.0005315,31]
[312983886,1706562669903,-510.54,0.0005315,31]
[312983887,1706562669913,-500.0,0.0005315,31]
[312983888,1706562669922,-559.54,0.0005315,31]
[312983889,1706562669933,-3374.14,0.0005315,31]
[312983890,1706562669943,-500.0,0.0005315,31]
[312983891,1706562669952,-1076.55,0.0005315,31]
[312983892,1706562669962,-3128.07,0.0005315,31]
[312983893,1706562669971,-296.97365172,0.0005315,31]
[312983894,1706562669981,-500.0,0.0005315,31]
[312983895,1706562669991,-7495.58,0.0005315,31]
[312983896,1706562670000,-1595.35,0.0005315,31]
[312983897,1706562670010,-500.0,0.0005315,31]
[312983898,1706562670019,-681.92,0.0005315,31]
[312983899,1706562670027,-708.47,0.0005315,31]
[312983900,1706562670036,-807.3,0.0005315,31]
[312983901,1706562670168,-500.0,0.0005315,31]
[312983902,1706562670178,-500.0,0.0005315,31]
[312983903,1706562670188,-748.48,0.0005315,31]
[312983904,1706562670199,-500.0,0.0005315,31]
[312983905,1706562670209,-595.51,0.0005315,31]
[312983906,1706562670219,-500.0,0.0005315,31]
[312983907,1706562670229,-500.0,0.0005315,31]
[312983908,1706562670238,-562.86,0.0005315,2]
[312983909,1706562670249,-1405.87,0.0005315,5]
[312983910,1706562670258,-500.0,0.0005315,31]
[312983911,1706562670268,-638.09,0.0005315,31]
[312983912,1706562670278,-500.0,0.0005315,31]
[312983913,1706562670288,-737.77,0.0005315,31]
[312983914,1706562670298,-665.71,0.0005315,31]
[312983915,1706562670308,-202.0366871,0.00053151,30]
[312983916,1706562670317,-334.12382587,0.00053151,30]
[312983917,1706562670327,-500.0,0.00053151,30]
[312983918,1706562670336,-500.0,0.00053151,30]
[312983919,1706562670345,-150.0,0.00053157,30]
[312983920,1706562670355,-150.0,0.00053157,30]
[312983921,1706562670364,-158.93642251,0.00053171,60]
[312983922,1706562670373,-157.83769784,0.00053173,60]
[312983923,1706562670383,-2000.0,0.00053177,2]
[312983924,1706562670393,-4357.0,0.0005319,2]
[312983925,1706562670402,-3946.0,0.0005319,2]
[312983926,1706562670412,-158.93642251,0.00053196,60]
[312983927,1706562670421,-151.013,0.00053198,59]
[312983928,1706562670430,-1000.0,0.000532,2]
[312983929,1706562670441,-156.17452511,0.000532,56]
[312983930,1706562670450,-41291.10081402,0.000532,120]
[312983931,1706562670459,-41291.10081399,0.000532,120]
[312983932,1706562670469,-41291.10081399,0.000532,120]
[312983933,1706562670479,-41291.10081399,0.000532,120]
[312983934,1706562670488,-41291.10081399,0.000532,120]
[312983935,1706562670497,-561.4,0.0005321,30]
[312983936,1706562670507,-561.4,0.0005321,30]
[312983937,1706562670516,-153.50137238,0.00053237,60]
[312983938,1706562670526,-157.83769784,0.00053262,60]
[312983939,1706562670536,-37983.6877231,0.00053264,2]
[312983940,1706562670545,-44560.8353191,0.00053264,2]
[312983941,1706562670556,-51137.9829151,0.00053264,2]
[312983942,1706562670566,-25717.5754666,0.00053264,2]
[312983943,1706562670575,-30170.7578666,0.00053264,2]
[312983944,1706562670585,-34623.9402666,0.00053264,2]
[312983945,1706562670594,-35658.1215,0.00053264,2]
[312983946,1706562670605,-37576.8785,0.00053264,2]
[312983947,1706562670614,-39495.6355,0.00053264,2]
[312983948,1706562670624,-150.0,0.00053281,30]
[312983949,1706562670633,-150.52477513,0.00053291,60]
[312983950,1706562670644,-204.53595002,0.00053297,2]
[312983951,1706562670655,-151.013,0.00053298,60]
[312983952,1706562670664,-163180.99008928,0.000533,120]
[312983953,1706562670674,-5505751.41996501,0.000533,31]
[312983954,1706562670943,-825822.57568062,0.000533,31]
[312983955,1706562670955,-901.29410006,0.000533,31]
[312983956,1706562671218,276.53942654,0.00021643,2]
[312983957,1706562671376,-2509.52427025,0.00022155,2]
[312983958,1706562671386,-594.19,0.0003887,10]
[312983959,1706562671396,-150.0,0.00050761,10]
[312983960,1706562671406,-150.0,0.00050824,10]
[312983961,1706562671416,-150.0,0.00050887,10]
[312983962,1706562671425,-500.0,0.00052876,31]
[312983963,1706562671434,-151.0,0.000529,14]
[312983964,1706562671445,-150.68,0.00053,120]
[312983965,1706562671454,-150.68,0.00053,120]
[312983966,1706562671463,-150.68,0.00053,120]
[312983967,1706562671473,-150.68,0.00053,120]
[312983968,1706562671482,-150.68,0.00053,120]
[312983969,1706562671491,-150.68,0.00053,120]
[312983970,1706562671501,-150.68,0.00053,120]
[312983971,1706562671510,-150.68,0.00053,120]
[312983972,1706562671519,-150.68,0.00053,120]
[312983973,1706562671528,-150.68,0.00053,120]
[312983974,1706562671537,-150.68,0.00053,120]
[312983975,1706562671546,-150.68,0.00053,120]
[312983976,1706562671558,-150.68,0.00053,120]
[312983977,1706562671567,-150.68,0.00053,120]
[312983978,1706562671576,-150.68,0.00053,120]
[312983979,1706562671586,-150.68,0.00053,120]
[312983980,1706562671595,-500.0,0.0005315,31]
[312983981,1706562671604,-42892.65626008,0.000533,31]
[312983982,1706562671833,-150.0,0.00050951,10]
[312983983,1706562671843,-150.68,0.00053,120]
[312983984,1706562671852,-150.68,0.00053,120]
[312983985,1706562671861,-150.68,0.00053,120]
[312983986,1706562671871,-150.68,0.00053,120]
[312983987,1706562671880,-150.68,0.00053,120]
[312983988,1706562671889,-150.68,0.00053,120]
[312983989,1706562671898,-4668.60609832,0.000533,31]
[312983990,1706562672204,-1613.63104436,0.000229,2]
[312983991,1706562672215,-150.0,0.00051014,11]
[312983992,1706562672225,-295.64524719,0.00051078,11]
[312983993,1706562672235,-151.0,0.000529,14]
[312983994,1706562672244,-150.68,0.00053,120]
[312983995,1706562672253,-150.68,0.00053,120]
[312983996,1706562672262,-150.68,0.00053,120]
[312983997,1706562672271,-150.68,0.00053,120]
[312983998,1706562672280,-150.68,0.00053,120]
[312983999,1706562672289,-150.68,0.00053,120]
[312984000,1706562672299,-150.68,0.00053,120]
[312984001,1706562672308,-150.68,0.00053,120]
[312984002,1706562672317,-150.68,0.00053,120]
[312984003,1706562672327,-150.68,0.00053,120]
[312984004,1706562672337,-150.68,0.00053,120]
[312984005,1706562672347,-2031174.47464161,0.000533,31]
[312984006,1706562672364,-150.68,0.00053,120]
[312984007,1706562672373,-386.33627361,0.000533,31]
[312984008,1706562672602,379.51644554,0.00021615,2]
[312984009,1706562672647,-269.80500478,0.00022272,2]
[312984010,1706562673796,-6.73442175,0.00022272,2]
[312984011,1706562673805,-2509.52427025,0.00022341,2]
[312984012,1706562673815,-149999.0,0.000529,30]
[312984013,1706562673824,-273668.22419694,0.000533,31]
[312984014,1706562673988,557.21014794,0.00021643,2]
[312984015,1706562676685,782.5291,0.00021596,2]
[312984016,1706562713878,210.0,0.00021596,2]
[312984017,1706562727040,214.30565311,0.00021596,2]
[312984018,1706562727063,424.30565311,0.00021596,2]
[312984019,1706562727085,361.38869378,0.00021596,2]
[312984063,1706563832072,-242.79238309,0.00022153,2]
[312984064,1706563832082,-568.26431304,0.00022153,2]
[312984065,1706563832128,-90.24221825,0.00022153,2]
[312984066,1706563832137,-1693.8494585,0.00022154,2]
[312984067,1706563832146,-262.22168542,0.00022154,2]
[312984068,1706563832156,-160.77400457,0.00022799,2]
[312984069,1706563832165,-160.77400452,0.00025931,2]
[312984070,1706563832174,-169.99,0.00028208,2]
[312984071,1706563832183,-160.77400452,0.00029062,2]
[312984072,1706563832191,-250.0,0.00029795,2]
[312984073,1706563832201,-19176.38800721,0.00029895,2]
[312984074,1706563832210,-150.0,0.00029896,2]
[312984075,1706563832219,-376.14901029,0.00029897,2]
[312984076,1706563832228,-156.08437386,0.00029897,2]
[312984077,1706563832237,-986.69336472,0.00029897,4]
[312984078,1706563832246,-501.45305312,0.00029897,2]
[312984079,1706563832255,-1234.37103584,0.00029897,2]
[312984080,1706563832264,-250.0,0.00029903,2]
[312984081,1706563832273,-19809.65202625,0.00029993,2]
[312984083,1706563832319,-513.45189583,0.00029993,2]
[312984085,1706563832331,-251.1953023,0.00029993,2]
[312984087,1706563832341,-403.9,0.00029993,2]
[312984088,1706563832353,-18421.8576712,0.00029993,2]
[312984089,1706563832367,-1804.49951785,0.00029993,2]
[312984090,1706563832385,-88451.95576168,0.00029993,2]
[312984091,1706563832394,-204.53595003,0.00029993,2]
[312984092,1706563832403,-499.99,0.00029993,2]
[312984093,1706563832412,-500.0,0.00029995,2]
[312984094,1706563832422,-187.14007694,0.00029995,2]
[312984095,1706563832432,-500.0,0.00029995,2]
[312984096,1706563832441,-500.0,0.00029995,2]
[312984097,1706563832450,-619.77744878,0.00029995,2]
[312984099,1706563832459,-500.0,0.00029995,2]
[312984101,1706563832468,-500.0,0.00029995,2]
[312984103,1706563832477,-500.0,0.00029995,2]
[312984105,1706563832486,-389.90392442,0.00029995,2]
[312984107,1706563832495,-500.0,0.00029995,2]
[312984109,1706563832504,-500.0,0.00029995,2]
[312984111,1706563832513,-500.0,0.00029995,2]
[312984113,1706563832522,-500.0,0.00029995,2]
[312984115,1706563832531,-13735.35688651,0.00029996,2]
[312984117,1706563832542,-875.369,0.00029996,2]
[312984122,1706563838079,-4866.95090215,0.00029996,2]
[312984123,1706563838191,-506.04999976,0.00029996,2]
[312984124,1706563838205,-1340.12807225,0.00029996,2]
[312984125,1706563838255,-845.11992553,0.00029996,2]
[312984126,1706563838268,-509.99120201,0.00029996,2]
[312984127,1706563838313,-1036654.92474034,0.00029996,2]
[312984128,1706563838323,-506863.61444946,0.00029997,2]
[312984129,1706563838335,-319.44822702,0.00029997,2]
[312984130,1706563838348,-155.0,0.00029997,2]
[312984131,1706563838358,-208.31498309,0.00029997,2]
[312984132,1706563838369,-164.34738147,0.00029997,2]
[312984133,1706563838381,-155.0,0.00029997,2]
[312984134,1706563838392,-845.12,0.0003,2]
[312984154,1706563838620,-7170.27,0.0003,2]
[312984155,1706563838630,-155.0,0.0003,2]
[312984156,1706563838640,-4961.49630549,0.0003,4]
[312984157,1706563838650,-150.0,0.00030201,2]
[312984158,1706563838659,-150.0,0.00030226,2]
[312984159,1706563838669,-9748.38,0.00030446,2]
[312984160,1706563838679,-250.0,0.00030446,2]
[312984161,1706563838689,-158.89,0.00030467,2]
[312984162,1706563838700,-169.99,0.00030471,2]
[312984163,1706563838710,-339.51,0.00030494,2]
[312984164,1706563838722,-2000.0,0.00030556,2]
[312984165,1706563838732,-166.29,0.00030737,2]
[312984166,1706563838741,-218507.020671,0.000318,2]
[312984167,1706563838750,-155.04,0.00031817,2]
[312984168,1706563838760,-182.56,0.00031932,2]
[312984169,1706563838769,-376.14901022,0.00031943,3]
[312984170,1706563838777,-155.04,0.00032093,2]
[312984171,1706563838787,-339.51,0.00032138,2]
[312984172,1706563838796,-160.77400452,0.00032194,2]
[312984173,1706563838805,-21630.58,0.00032194,2]
[312984174,1706563838814,-1535.8,0.00032194,2]
[312984175,1706563838824,-155.04,0.00032369,2]
[312984176,1706563838833,-155.04,0.00032646,2]
[312984177,1706563838842,-169.99,0.00032735,2]
[312984178,1706563838851,-501.45305311,0.00032829,2]
[312984179,1706563838860,-155.04,0.00032922,2]
[312984180,1706563838869,-2037.80543002,0.00032964,6]
[312984181,1706563838878,-986.69336465,0.00033112,6]
[312984182,1706563838887,-180.0,0.00033155,2]
[312984183,1706563838897,-155.04,0.00033198,2]
[312984184,1706563838908,-155.04,0.00033475,2]
[312984185,1706563838918,-173.1,0.00033533,120]
[312984186,1706563838928,-339.51,0.00033782,2]
[312984187,1706563838938,-1257.79,0.00033928,2]
[312984188,1706563838948,-376.14901022,0.00033988,6]
[312984189,1706563838958,-1000.0,0.00034384,2]
[312984190,1706563838967,-184.32,0.00034985,2]
[312984191,1706563838977,-169.99,0.00034999,2]
[312984192,1706563838986,-5000.0,0.00035,7]
[312984193,1706563838995,-227.56817358,0.00035,7]
[312984194,1706563839004,-155.0,0.00035,4]
[312984195,1706563839013,-160.77400452,0.00035326,2]
[312984196,1706563839023,-600.0,0.00035385,2]
[312984197,1706563839032,-339.51,0.00035426,2]
[312984198,1706563839041,-281.28,0.000355,3]
[312984199,1706563839050,-281.28,0.000355,3]
[312984200,1706563839059,-281.28,0.000355,3]
[312984201,1706563839068,-281.28,0.000355,3]
[312984202,1706563839077,-281.28,0.000355,3]
[312984203,1706563839086,-281.28,0.000355,3]
[312984204,1706563839095,-281.28,0.000355,3]
[312984205,1706563839104,-281.28,0.000355,3]
[312984206,1706563839113,-281.28,0.000355,3]
[312984207,1706563839122,-281.28,0.000355,3]
[312984208,1706563839131,-281.28,0.000355,3]
[312984209,1706563839141,-281.28,0.000355,3]
[312984210,1706563839150,-281.28,0.000355,3]
[312984211,1706563839162,-281.28,0.000355,3]
[312984212,1706563839172,-281.28,0.000355,3]
[312984213,1706563839181,-281.28,0.000355,3]
[312984214,1706563839190,-281.28,0.000355,3]
[312984215,1706563839199,-281.28,0.000355,3]
[312984216,1706563839208,-281.28,0.000355,3]
[312984217,1706563839218,-281.28,0.000355,3]
[312984218,1706563839228,-501.45305311,0.00035761,2]
[312984219,1706563839238,-376.14901022,0.00036034,8]
[312984220,1706563839249,-164.78,0.000361,7]
[312984221,1706563839261,-986.69336465,0.00036326,7]
[312984222,1706563839270,-339.51,0.0003707,2]
[312984223,1706563839280,-169.99,0.00037263,2]
[312984224,1706563839290,-658974.442977,0.000379,2]
[312984225,1706563839300,-376.14901022,0.0003808,11]
[312984226,1706563839309,-500.0,0.000384,2]
[312984227,1706563839318,-160.77400452,0.00038457,2]
[312984228,1706563839327,-1000.0,0.00038682,2]
[312984229,1706563839336,-501.45305311,0.00038693,2]
[312984230,1706563839345,-339.51,0.00038713,2]
[312984231,1706563839354,-282.60808243,0.0003898,2]
[312984232,1706563839363,-978.30213314,0.00039,4]
[312984233,1706563839373,-1431.73512433,0.00039,2]
[312984234,1706563839382,-621.60218478,0.00039,4]
[312984235,1706563839391,-40491.46745405,0.00039179,19]
[312984236,1706563839401,-6466.00253123,0.00039179,2]
[312984237,1706563839410,-169.99,0.00039527,2]
[312984238,1706563839419,-986.69336465,0.00039541,9]
[312984239,1706563839428,-155.0,0.0004,2]
[312984240,1706563839439,-2274.86979912,0.0004,4]
[312984241,1706563839448,-22076.99674252,0.0004,4]
[312984242,1706563839458,-1086.74219428,0.0004,4]
[312984243,1706563839466,-180.5079485,0.0004,2]
[312984244,1706563839475,-713.30733836,0.0004,30]
[312984245,1706563839485,-376.14901022,0.00040126,14]
[312984246,1706563839494,-281.28,0.000402,4]
[312984247,1706563839503,-281.28,0.000402,4]
[312984248,1706563839512,-281.28,0.000402,4]
[312984249,1706563839522,-281.28,0.000402,4]
[312984250,1706563839531,-281.28,0.000402,4]
[312984251,1706563839541,-281.28,0.000402,4]
[312984252,1706563839550,-281.28,0.000402,4]
[312984253,1706563839559,-281.28,0.000402,4]
[312984254,1706563839568,-281.28,0.000402,4]
[312984255,1706563839577,-281.28,0.000402,4]
[312984256,1706563839586,-281.28,0.000402,4]